fUSD/lending_fUSD_20250523
["ID","MTS","AMOUNT","RATE_DAILY","PERIOD"]
[362123262,1748005650219,-420.0,0.00027397,4]
[362123263,1748005650242,-420.0,0.00027397,4]
[362123264,1748005650264,-420.0,0.00027397,4]
[362123265,1748005650287,-420.0,0.00027397,4]
[362123266,1748005650312,-420.0,0.00027397,4]
[362123267,1748005650334,-183.86,0.00027397,4]
[362123268,1748005650356,-420.0,0.00027397,4]
[362123269,1748005650379,-420.0,0.00027397,4]
[362123270,1748005650401,-420.0,0.00027397,4]
[362123271,1748005650423,-420.0,0.00027397,4]
[362123272,1748005650446,-150.0,0.00027397,2]
[362123273,1748005650468,-358.54,0.00027397,2]
[362123274,1748005650490,-226.31,0.00027431,2]
[362123275,1748005650511,-207.0,0.00027499,8]
[362123276,1748005650532,-150.0,0.000275,2]
[362123277,1748005650555,-350.0,0.00027525,2]
[362123278,1748005650577,-420.0,0.00027534,4]
[362123279,1748005650599,-420.0,0.00027534,4]
[362123280,1748005650620,-420.0,0.00027534,4]
[362123281,1748005650642,-155.43,0.00027534,4]
[362123282,1748005650664,-420.0,0.00027534,4]
[362123283,1748005650686,-420.0,0.00027534,4]
[362123284,1748005650707,-420.0,0.00027534,4]
[362123285,1748005650729,-420.0,0.00027534,4]
[362123286,1748005650751,-420.0,0.00027534,4]
[362123287,1748005650773,-420.0,0.00027534,4]
[362123288,1748005650795,-420.0,0.00027534,4]
[362123289,1748005650818,-420.0,0.00027534,4]
[362123290,1748005650840,-420.0,0.00027534,4]
[362123291,1748005650862,-420.0,0.00027534,4]
[362123292,1748005650884,-420.0,0.00027534,4]
[362123293,1748005650906,-420.0,0.00027534,4]
[362123294,1748005650934,-495.41,0.00027534,4]
[362123295,1748005650956,-420.0,0.00027534,4]
[362123296,1748005650979,-420.0,0.00027534,4]
[362123297,1748005651002,-233.32,0.00027534,4]
[362123298,1748005651025,-420.0,0.00027534,4]
[362123299,1748005651047,-420.0,0.00027534,4]
[362123300,1748005651072,-420.0,0.00027534,4]
[362123301,1748005651095,-420.0,0.00027534,4]
[362123302,1748005651117,-420.0,0.00027534,4]
[362123303,1748005651140,-420.0,0.00027534,4]
[362123304,1748005651164,-420.0,0.00027534,4]
[362123305,1748005651188,-420.0,0.00027534,4]
[362123306,1748005651211,-420.0,0.00027534,4]
[362123307,1748005651233,-1265.70528,0.00027534,2]
[362123308,1748005651256,-200.0,0.00027553,2]
[362123309,1748005651278,-151.0,0.00027553,2]
[362123310,1748005651302,-610.40634541,0.0002757,13]
[362123311,1748005651328,-575.8505,0.00027571,2]
[362123312,1748005651351,-6874.0245,0.00027598,2]
[362123313,1748005651373,-736.2288,0.00027598,2]
[362123314,1748005651401,-587.93821488,0.00027659,17]
[362123315,1748005651423,-409.31,0.0002767,4]
[362123316,1748005651446,-420.0,0.0002767,4]
[362123317,1748005651468,-420.0,0.0002767,4]
[362123318,1748005651490,-420.0,0.0002767,4]
[362123319,1748005651512,-420.0,0.0002767,4]
[362123320,1748005651537,-420.0,0.0002767,4]
[362123321,1748005651564,-420.0,0.0002767,4]
[362123322,1748005651598,-420.0,0.0002767,4]
[362123323,1748005651621,-420.0,0.0002767,4]
[362123324,1748005651643,-420.0,0.0002767,4]
[362123325,1748005651666,-420.0,0.0002767,4]
[362123326,1748005651688,-159.7,0.0002767,4]
[362123327,1748005651710,-181.54,0.0002767,4]
[362123328,1748005651732,-420.0,0.0002767,4]
[362123329,1748005651755,-420.0,0.0002767,4]
[362123330,1748005651778,-420.0,0.0002767,4]
[362123331,1748005651802,-420.0,0.0002767,4]
[362123332,1748005651825,-420.0,0.0002767,4]
[362123333,1748005651847,-420.0,0.0002767,4]
[362123334,1748005651869,-420.0,0.0002767,4]
[362123335,1748005651892,-420.0,0.0002767,4]
[362123336,1748005651914,-420.0,0.0002767,4]
[362123337,1748005651939,-420.0,0.0002767,4]
[362123338,1748005651962,-420.0,0.0002767,4]
[362123339,1748005652222,-324.1,0.0002767,4]
[362123340,1748005652245,-420.0,0.0002767,4]
[362123341,1748005652268,-420.0,0.0002767,4]
[362123342,1748005652290,-420.0,0.0002767,4]
[362123343,1748005652313,-420.0,0.0002767,4]
[362123344,1748005652337,-420.0,0.0002767,4]
[362123345,1748005652365,-420.0,0.0002767,4]
[362123346,1748005652387,-550.98,0.0002767,4]
[362123347,1748005652409,-359.37311895,0.0002767,4]
[362123348,1748005652431,-297.32,0.0002767,4]
[362123349,1748005652453,-375.554268,0.0002767,4]
[362123350,1748005652474,-420.0,0.0002767,4]
[362123351,1748005652501,-266.086811,0.0002767,4]
[362123352,1748005652522,-420.0,0.0002767,4]
[362123353,1748005652543,-420.0,0.0002767,4]
[362123354,1748005652572,-420.0,0.0002767,4]
[362123355,1748005652593,-420.0,0.0002767,4]
[362123356,1748005652620,-312.94,0.0002767,4]
[362123357,1748005652642,-420.0,0.0002767,4]
[362123358,1748005652663,-420.0,0.0002767,4]
[362123359,1748005652684,-420.0,0.0002767,4]
[362123360,1748005652705,-500.0,0.0002767,2]
[362123361,1748005652727,-420.0,0.0002767,4]
[362123362,1748005652749,-181.52,0.0002767,4]
[362123363,1748005652770,-420.0,0.0002767,4]
[362123364,1748005652792,-420.0,0.0002767,4]
[362123365,1748005652815,-420.0,0.0002767,4]
[362123366,1748005652837,-567.61,0.0002767,4]
[362123367,1748005652860,-420.0,0.0002767,4]
[362123368,1748005652882,-420.0,0.0002767,4]
[362123369,1748005652905,-163.55092468,0.0002767,4]
[362123370,1748005652932,-420.0,0.0002767,4]
[362123371,1748005652954,-420.0,0.0002767,4]
[362123372,1748005652979,-458.52,0.0002767,4]
[362123373,1748005653003,-420.0,0.0002767,4]
[362123374,1748005653027,-420.0,0.0002767,4]
[362123375,1748005653049,-420.0,0.0002767,4]
[362123376,1748005653079,-420.0,0.0002767,4]
[362123377,1748005653102,-283.71,0.0002767,4]
[362123378,1748005653126,-420.0,0.0002767,4]
[362123379,1748005653149,-420.0,0.0002767,4]
[362123380,1748005653172,-420.0,0.0002767,4]
[362123381,1748005653194,-5063.36,0.0002767,4]
[362123382,1748005653217,-420.0,0.0002767,4]
[362123383,1748005653241,-467.14,0.0002767,4]
[362123384,1748005653263,-420.0,0.0002767,4]
[362123385,1748005653289,-420.0,0.0002767,4]
[362123386,1748005653312,-420.0,0.0002767,4]
[362123387,1748005653334,-420.0,0.0002767,4]
[362123388,1748005653356,-420.0,0.0002767,4]
[362123389,1748005653379,-420.0,0.0002767,4]
[362123390,1748005653401,-851.31,0.0002767,2]
[362123391,1748005653425,-173.64377871,0.0002767,4]
[362123392,1748005653447,-543.0,0.0002767,4]
[362123393,1748005653472,-420.0,0.0002767,4]
[362123394,1748005653494,-420.0,0.0002767,4]
[362123395,1748005653522,-420.0,0.0002767,4]
[362123396,1748005653548,-420.0,0.0002767,4]
[362123397,1748005653578,-420.0,0.0002767,4]
[362123398,1748005653603,-420.0,0.0002767,4]
[362123399,1748005653627,-420.0,0.0002767,4]
[362123400,1748005653654,-224.96075323,0.0002767,4]
[362123408,1748005832068,-4353.0,0.000233,5]
[362123409,1748005832079,-961.11,0.00024907,2]
[362123410,1748005832089,-110.89,0.00026,2]
[362123411,1748005832125,-589.11,0.00026,2]
[362123412,1748005832135,-500.0,0.00026787,2]
[362123413,1748005832144,-37835.757528,0.0002698,2]
[362123414,1748005832185,-599.06881067,0.0002698,2]
[362123415,1748005832196,-61565.17366133,0.0002698,2]
[362123416,1748005832205,-800.0,0.00027,3]
[362123417,1748005832214,-961.11,0.00027171,2]
[362123418,1748005832226,-1200.0,0.00027669,2]
[362123419,1748005832235,-420.0,0.0002767,4]
[362123420,1748005832245,-420.0,0.0002767,4]
[362123421,1748005832254,-420.0,0.0002767,4]
[362123422,1748005832264,-273.47,0.0002767,4]
[362123423,1748005832274,-420.0,0.0002767,4]
[362123424,1748005832283,-420.0,0.0002767,4]
[362123425,1748005832293,-339.86,0.0002767,4]
[362123426,1748005832303,-420.0,0.0002767,4]
[362123427,1748005832312,-420.0,0.0002767,4]
[362123428,1748005832321,-420.0,0.0002767,4]
[362123429,1748005832331,-420.0,0.0002767,4]
[362123430,1748005832340,-420.0,0.0002767,4]
[362123431,1748005832349,-666.0,0.0002767,2]
[362123432,1748005832358,-420.0,0.0002767,4]
[362123433,1748005832368,-228.23,0.0002767,4]
[362123434,1748005832377,-420.0,0.0002767,4]
[362123435,1748005832386,-420.0,0.0002767,4]
[362123436,1748005832396,-420.0,0.0002767,4]
[362123437,1748005832406,-420.0,0.0002767,4]
[362123438,1748005832415,-548.96,0.0002767,4]
[362123439,1748005832424,-420.0,0.0002767,4]
[362123440,1748005832434,-420.0,0.0002767,4]
[362123441,1748005832443,-713.68,0.0002767,4]
[362123442,1748005832452,-420.0,0.0002767,4]
[362123443,1748005832462,-420.0,0.0002767,4]
[362123444,1748005832471,-420.0,0.0002767,4]
[362123445,1748005832481,-420.0,0.0002767,4]
[362123446,1748005832491,-524.6,0.0002767,4]
[362123447,1748005832500,-420.0,0.0002767,4]
[362123448,1748005832509,-420.0,0.0002767,4]
[362123449,1748005832518,-420.0,0.0002767,4]
[362123451,1748005832527,-420.0,0.0002767,4]
[362123453,1748005832536,-420.0,0.0002767,4]
[362123454,1748005832545,-420.0,0.0002767,4]
[362123456,1748005832554,-420.0,0.0002767,4]
[362123458,1748005832563,-420.0,0.0002767,4]
[362123461,1748005832572,-420.0,0.0002767,4]
[362123463,1748005832581,-463.78,0.0002767,4]
[362123465,1748005832591,-500.79,0.0002767,4]
[362123467,1748005832599,-420.0,0.0002767,4]
[362123469,1748005832609,-323.33,0.0002767,4]
[362123471,1748005832619,-458.47,0.0002767,4]
[362123473,1748005832628,-420.0,0.0002767,4]
[362123475,1748005832637,-198.19,0.0002767,4]
[362123477,1748005832647,-512.16,0.0002767,4]
[362123478,1748005832658,-503.69,0.0002767,4]
[362123479,1748005832667,-420.0,0.0002767,4]
[362123480,1748005832676,-420.0,0.0002767,4]
[362123481,1748005832685,-420.0,0.0002767,4]
[362123482,1748005832695,-420.0,0.0002767,4]
[362123483,1748005832704,-447.71361531,0.0002767,4]
[362123484,1748005832714,-4852.39,0.0002767,4]
[362123485,1748005832725,-420.0,0.0002767,4]
[362123486,1748005832734,-447.67,0.0002767,4]
[362123487,1748005832744,-420.0,0.0002767,2]
[362123488,1748005832753,-454.13,0.0002767,4]
[362123489,1748005832763,-420.0,0.0002767,4]
[362123490,1748005832773,-420.0,0.0002767,4]
[362123491,1748005832782,-420.0,0.0002767,4]
[362123492,1748005832791,-420.0,0.0002767,4]
[362123493,1748005832801,-420.0,0.0002767,4]
[362123494,1748005832811,-420.0,0.0002767,4]
[362123495,1748005832820,-420.0,0.0002767,4]
[362123496,1748005832830,-420.0,0.0002767,4]
[362123497,1748005832839,-420.0,0.0002767,4]
[362123498,1748005832848,-420.0,0.0002767,4]
[362123499,1748005832858,-420.0,0.0002767,4]
[362123500,1748005832867,-420.0,0.0002767,4]
[362123501,1748005832876,-420.0,0.0002767,4]
[362123502,1748005832885,-420.0,0.0002767,4]
[362123503,1748005832895,-248.65,0.0002767,4]
[362123504,1748005832904,-420.0,0.0002767,4]
[362123505,1748005832913,-420.0,0.0002767,4]
[362123506,1748005832922,-420.0,0.0002767,4]
[362123507,1748005832932,-420.0,0.0002767,4]
[362123508,1748005832941,-239.22,0.0002767,4]
[362123509,1748005832950,-420.0,0.0002767,4]
[362123510,1748005832960,-420.0,0.0002767,4]
[362123511,1748005832971,-420.0,0.0002767,4]
[362123512,1748005832982,-1222.34,0.0002767,4]
[362123513,1748005832992,-983.01,0.0002767,4]
[362123514,1748005833002,-420.0,0.0002767,4]
[362123515,1748005833015,-1366.65,0.0002767,4]
[362123516,1748005833024,-420.0,0.0002767,4]
[362123517,1748005833034,-420.0,0.0002767,4]
[362123518,1748005833045,-543.96,0.0002767,4]
[362123519,1748005833055,-1110.68,0.0002767,4]
[362123520,1748005833064,-643.35,0.0002767,4]
[362123521,1748005833075,-2136.27,0.0002767,4]
[362123522,1748005833084,-515.3,0.00027671,4]
[362123523,1748005833095,-420.0,0.00027671,4]
[362123524,1748005833104,-240.88,0.00027671,4]
[362123525,1748005833114,-420.0,0.00027671,4]
[362123526,1748005833123,-420.0,0.00027671,4]
[362123527,1748005833133,-187.7077451,0.00027671,4]
[362123528,1748005833142,-420.0,0.00027671,4]
[362123529,1748005833152,-420.0,0.00027671,4]
[362123530,1748005833161,-420.0,0.00027671,4]
[362123531,1748005833171,-150.0,0.00027671,4]
[362123532,1748005833181,-150.65829434,0.00027671,4]
[362123533,1748005833191,-150.0,0.00027671,2]
[362123534,1748005833200,-500.0,0.00027671,4]
[362123535,1748005833210,-210.0,0.0002768,2]
[362123536,1748005833222,-211.0,0.0002768,30]
[362123537,1748005833231,-5000.0,0.00027686,2]
[362123538,1748005833241,-500.0,0.00027698,4]
[362123539,1748005833250,-1900.0,0.000277,10]
[362123540,1748005833260,-174.11,0.000277,2]
[362123541,1748005833269,-170.17,0.000277,2]
[362123542,1748005833279,-293.60858381,0.00027706,2]
[362123543,1748005833289,-5683.34350221,0.00027707,2]
[362123544,1748005833299,-4335.79254613,0.00027707,2]
[362123545,1748005833309,-500.0,0.00027726,4]
[362123546,1748005833318,-500.0,0.00027753,4]
[362123547,1748005833328,-500.0,0.00027781,4]
[362123548,1748005833337,-1387.03,0.00027797,2]
[362123549,1748005833347,-3800.0,0.000278,10]
[362123550,1748005833356,-170.17,0.000278,2]
[362123551,1748005833366,-459.87,0.000278,2]
[362123552,1748005833376,-192.48455771,0.00027803,2]
[362123553,1748005833386,-29847.47388686,0.00027807,7]
[362123554,1748005833396,-420.0,0.00027807,4]
[362123555,1748005833405,-420.0,0.00027807,4]
[362123556,1748005833415,-420.0,0.00027807,4]
[362123557,1748005833425,-420.0,0.00027807,4]
[362123558,1748005833434,-420.0,0.00027807,4]
[362123559,1748005833444,-420.0,0.00027807,4]
[362123560,1748005833676,-420.0,0.00027807,4]
[362123561,1748005833687,-420.0,0.00027807,4]
[362123562,1748005833697,-420.0,0.00027807,4]
[362123563,1748005833707,-420.0,0.00027807,4]
[362123564,1748005833718,-420.0,0.00027807,4]
[362123565,1748005833729,-420.0,0.00027807,4]
[362123566,1748005833739,-420.0,0.00027807,4]
[362123567,1748005833748,-291.27,0.00027807,4]
[362123568,1748005833758,-420.0,0.00027807,4]
[362123569,1748005833768,-391.24,0.00027807,4]
[362123570,1748005833778,-420.0,0.00027807,4]
[362123571,1748005833788,-420.0,0.00027807,4]
[362123572,1748005833798,-420.0,0.00027807,4]
[362123573,1748005833809,-420.0,0.00027807,4]
[362123574,1748005833819,-420.0,0.00027807,4]
[362123575,1748005833829,-420.0,0.00027807,4]
[362123576,1748005833838,-550.98,0.00027807,4]
[362123577,1748005833848,-420.0,0.00027807,4]
[362123578,1748005833858,-420.0,0.00027807,4]
[362123579,1748005833868,-420.0,0.00027807,4]
[362123580,1748005833878,-473.1,0.00027807,4]
[362123581,1748005833888,-359.8,0.00027807,4]
[362123582,1748005833897,-420.0,0.00027807,4]
[362123583,1748005833907,-293.25555588,0.00027807,4]
[362123584,1748005833917,-420.0,0.00027807,4]
[362123585,1748005833927,-420.0,0.00027807,4]
[362123586,1748005833937,-381.5,0.00027807,4]
[362123587,1748005833947,-420.0,0.00027807,4]
[362123588,1748005833957,-273.8,0.00027807,4]
[362123589,1748005833966,-262.06,0.00027807,4]
[362123590,1748005833981,-484.88,0.00027807,4]
[362123591,1748005833995,-410.0,0.00027807,4]
[362123592,1748005834005,-353.96,0.00027807,4]
[362123593,1748005834016,-496.7,0.00027807,4]
[362123594,1748005834026,-420.0,0.00027807,4]
[362123595,1748005834038,-420.0,0.00027807,4]
[362123596,1748005834048,-420.0,0.00027807,4]
[362123597,1748005834058,-176.31,0.00027807,4]
[362123598,1748005834068,-420.0,0.00027807,4]
[362123599,1748005834078,-420.0,0.00027807,4]
[362123600,1748005834087,-457.46272531,0.00027807,4]
[362123601,1748005834097,-420.0,0.00027807,4]
[362123602,1748005834107,-420.0,0.00027807,4]
[362123603,1748005834116,-420.0,0.00027807,4]
[362123604,1748005834126,-666.0,0.00027807,2]
[362123605,1748005834135,-405.48,0.00027807,4]
[362123606,1748005834145,-420.0,0.00027807,4]
[362123607,1748005834155,-420.0,0.00027807,4]
[362123608,1748005834164,-420.0,0.00027807,4]
[362123609,1748005834174,-420.0,0.00027807,4]
[362123610,1748005834184,-420.0,0.00027807,4]
[362123611,1748005834193,-284.28,0.00027807,4]
[362123612,1748005834204,-713.68,0.00027807,4]
[362123613,1748005834214,-420.0,0.00027807,4]
[362123614,1748005834226,-420.0,0.00027807,4]
[362123615,1748005834236,-420.0,0.00027807,4]
[362123616,1748005834245,-420.0,0.00027807,4]
[362123617,1748005834257,-420.0,0.00027807,4]
[362123618,1748005834267,-420.0,0.00027807,4]
[362123619,1748005834276,-420.0,0.00027807,4]
[362123620,1748005834286,-420.0,0.00027807,4]
[362123621,1748005834296,-381.88,0.00027807,4]
[362123622,1748005834306,-420.0,0.00027807,4]
[362123623,1748005834316,-420.0,0.00027807,4]
[362123624,1748005834325,-420.0,0.00027807,4]
[362123625,1748005834334,-420.0,0.00027807,4]
[362123626,1748005834344,-420.0,0.00027807,4]
[362123627,1748005834353,-458.47,0.00027807,4]
[362123628,1748005834363,-410.64,0.00027807,4]
[362123629,1748005834373,-456.86,0.00027807,4]
[362123630,1748005834383,-420.0,0.00027807,4]
[362123631,1748005834393,-169.14,0.00027807,4]
[362123632,1748005834403,-420.0,0.00027807,4]
[362123633,1748005834412,-4852.39,0.00027807,4]
[362123634,1748005834422,-420.0,0.00027807,4]
[362123635,1748005834431,-447.67,0.00027807,4]
[362123636,1748005834441,-454.13,0.00027807,4]
[362123637,1748005834450,-420.0,0.00027807,4]
[362123638,1748005834460,-420.0,0.00027807,4]
[362123639,1748005834471,-420.0,0.00027807,4]
[362123640,1748005834480,-420.0,0.00027807,4]
[362123641,1748005834490,-420.0,0.00027807,4]
[362123642,1748005834499,-385.12215479,0.00027807,4]
[362123643,1748005834509,-420.0,0.00027807,4]
[362123644,1748005834519,-156.11,0.00027807,4]
[362123645,1748005834530,-420.0,0.00027807,4]
[362123646,1748005834540,-420.0,0.00027807,4]
[362123647,1748005834549,-420.0,0.00027807,4]
[362123648,1748005834559,-420.0,0.00027807,4]
[362123649,1748005834568,-420.0,0.00027807,4]
[362123650,1748005834579,-420.0,0.00027807,4]
[362123651,1748005834588,-420.0,0.00027807,4]
[362123652,1748005834598,-420.0,0.00027807,4]
[362123653,1748005834608,-194.02,0.00027807,4]
[362123654,1748005834618,-420.0,0.00027807,4]
[362123655,1748005834628,-420.0,0.00027807,4]
[362123656,1748005834638,-420.0,0.00027807,4]
[362123657,1748005834647,-420.0,0.00027807,4]
[362123658,1748005834657,-1222.34,0.00027807,4]
[362123659,1748005834668,-983.01,0.00027807,4]
[362123660,1748005834677,-289.71,0.00027807,4]
[362123661,1748005834687,-1366.65,0.00027807,4]
[362123662,1748005834697,-271.52,0.00027807,4]
[362123663,1748005834707,-420.0,0.00027807,4]
[362123664,1748005834716,-543.96,0.00027807,4]
[362123665,1748005834728,-1110.68,0.00027807,4]
[362123666,1748005834738,-643.35,0.00027807,4]
[362123667,1748005834748,-2136.27,0.00027807,4]
[362123668,1748005834757,-500.0,0.00027808,4]
[362123669,1748005834767,-420.0,0.00027808,4]
[362123670,1748005834777,-258.54,0.00027808,4]
[362123671,1748005834787,-231.00417619,0.00027808,4]
[362123672,1748005834796,-360.95,0.00027808,4]
[362123673,1748005834806,-420.0,0.00027808,4]
[362123674,1748005834816,-6095.8986,0.00027813,2]
[362123675,1748005834826,-470.99585436,0.00027813,2]
[362123676,1748005834836,-395.0,0.00027835,4]
[362123677,1748005834846,-168.28317843,0.00027845,2]
[362123678,1748005834855,-500.0,0.00027873,5]
[362123679,1748005834865,-1387.03,0.00027893,2]
[362123680,1748005834875,-5700.0,0.000279,10]
[362123681,1748005834885,-509.54645307,0.000279,18]
[362123682,1748005834895,-255.59937312,0.00027902,2]
[362123683,1748005834904,-193.80669427,0.00027902,2]
[362123684,1748005834914,-464.2054737,0.00027903,3]
[362123685,1748005835526,-31166.36949177,0.00027903,3]
[362123686,1748005835542,-253.39681435,0.00027903,3]
[362123687,1748005835553,-10822.0,0.00027903,3]
[362123738,1748005840836,-20539.69734196,0.00027903,3]
[362123739,1748005841037,-1257.05981117,0.00027903,3]
[362123740,1748005841081,336.2128,0.00016003,2]
[362123741,1748005841122,107.75740903,0.00016003,2]
[362123742,1748005841175,-228.45539097,0.00016003,2]
[362123743,1748005841185,-36.24678208,0.00016003,2]
[362123744,1748005841214,-195.9089075,0.00016003,2]
[362123745,1748005841233,-104.05712042,0.00016003,2]
[362123746,1748005841243,-661.56287958,0.00027903,3]
[362123747,1748005841480,245.28,0.00027119,120]
[362123752,1748005843131,-420.0,0.0002767,4]
[362123753,1748005843141,-136.46611561,0.00027807,4]
[362123754,1748005843288,-19.30379169,0.00027807,4]
[362123755,1748005843303,-264.2300927,0.00027807,4]
[362123756,1748005843312,-108029.97559382,0.00027903,3]
[362123757,1748005843353,-286.0367469,0.00027903,3]
[362123762,1748005843411,-56425.59918232,0.00027903,3]
[362123770,1748005846058,-5442.79526132,0.00027903,3]
[362123771,1748005846071,-495.0499996,0.00027903,3]
[362123772,1748005846288,-1336.23814367,0.00027903,3]
[362123773,1748005846300,-1674.57912703,0.00027903,3]
[362123777,1748005915397,-150.0,0.00027021,2]
[362123778,1748005915419,-50.0,0.00027263,2]
[362123779,1748005917095,-171.67624742,0.00027263,2]
[362123780,1748005919062,-194.85052597,0.00027263,2]
[362123781,1748005944938,-226.32028476,0.00027263,2]
[362123782,1748005947717,-168.47132671,0.00027263,2]
[362123783,1748005949267,-226.24455807,0.00027263,2]
[362123784,1748005952417,-315.27128866,0.00027263,2]
[362123785,1748005954391,-169.51201583,0.00027263,2]
[362123786,1748005957099,-218.59695874,0.00027263,2]
[362123787,1748005958658,-162.05176874,0.00027263,2]
[362123788,1748005961132,-232.91323714,0.00027263,2]
[362123789,1748005964267,-236.29,0.00027263,2]
[362123793,1748006418364,193.78,0.00013699,2]
[362123795,1748006496171,250.0,0.00015,2]
[362123850,1748006890857,156.41,0.00027168,120]
[362123863,1748007032690,-196.49944194,0.00019987,2]
[362123864,1748007032700,-300.0,0.00019989,2]
[362123865,1748007032709,-1200.0,0.00019989,2]
[362123866,1748007032718,-17954.04655006,0.0001999,2]
[362123887,1748007038368,-300.0,0.00019989,2]
[362123888,1748007038378,-14611.54012846,0.0001999,2]
[362123889,1748007038432,-4716.73988,0.0001999,2]
[362123890,1748007038444,-4497.08020042,0.0001999,2]
[362123891,1748007038455,-300.0,0.00019998,2]
[362123892,1748007038466,-494.100005,0.00019999,2]
[362123893,1748007038475,-500.0,0.00019999,2]
[362123894,1748007038485,-500.0,0.00019999,2]
[362123895,1748007038495,-500.0,0.00019999,2]
[362123896,1748007038506,-500.0,0.00019999,2]
[362123898,1748007038516,-500.0,0.00019999,2]
[362123900,1748007038525,-330.13262735,0.00019999,2]
[362123901,1748007038535,-13608.68716723,0.0002,2]
[362123909,1748007040442,-2709.25,0.0002,2]
[362123910,1748007040455,-7992.44226337,0.0002,2]
[362123911,1748007041035,-9236.7729935,0.0002,2]
[362123917,1748007043397,-511.6,0.0002,2]
[362123918,1748007043409,-470.4,0.0002,2]
[362123919,1748007043423,-54457.42306491,0.0002,2]
[362123920,1748007043590,-108557.837243,0.0002,2]
[362123926,1748007046267,-2536.26537235,0.0002,2]
[362123927,1748007046471,-443.54481266,0.0002,2]
[362123928,1748007046549,-439.70148001,0.0002,2]
[362123929,1748007046692,-6694.63126212,0.0002,2]
[362123937,1748007551704,191.63,0.00013699,2]
[362123939,1748008146165,-1019.91,0.00018596,2]
[362123940,1748008146186,-166.96,0.00019317,2]
[362123941,1748008146212,-151.0,0.00019635,2]
[362123942,1748008146232,-151.0,0.00019637,2]
[362123943,1748008146252,-151.0,0.00019637,2]
[362123944,1748008146272,-151.0,0.00019638,2]
[362123945,1748008146293,-151.0,0.00019638,2]
[362123946,1748008146314,-478.0230528,0.00019736,2]
[362123947,1748008146334,-1595.77573131,0.000199,2]
[362123948,1748008147928,233.992386,7.945e-05,2]
[362123981,1748008231426,-2804.86572104,0.000199,2]
[362123983,1748008231435,-300.0,0.00019972,2]
[362123985,1748008231446,-500.0,0.00019973,2]
[362123987,1748008231456,-500.0,0.00019973,2]
[362123989,1748008231465,-1200.0,0.00019998,2]
[362123991,1748008231476,-314.45918082,0.00019999,2]
[362123993,1748008231485,-500.0,0.00019999,2]
[362123994,1748008231495,-165358.46623479,0.0002,2]
[362123995,1748008231504,-508.72655758,0.0002,2]
[362123996,1748008231514,-1431.83974,0.0002,2]
[362123997,1748008231524,-200.0,0.00020044,2]
[362123998,1748008231533,-191.63,0.00020187,2]
[362123999,1748008231542,-1449.84,0.00020362,2]
[362124000,1748008231551,-500.0,0.00020571,2]
[362124001,1748008231561,-500.0,0.00020571,2]
[362124002,1748008231571,-500.0,0.00020571,2]
[362124003,1748008231581,-500.0,0.00020571,2]
[362124004,1748008231590,-500.0,0.00020571,2]
[362124005,1748008231600,-1019.91,0.0002086,2]